[Event "5th EKA IIFL Investment 2019"]
[Site "Mumbai"]
[Date "2019.12.31"]
[Round "2.40"]
[White "Rajesh, V A V"]
[Black "Kulkarni, Vinayak"]
[Result "1-0"]
[ECO "D32"]
[WhiteElo "2393"]
[BlackElo "2167"]
[Annotator "ChessBase"]
[PlyCount "53"]
[EventDate "2019.12.30"]
[EventType "swiss"]
[EventCountry "IND"]
[SourceTitle "playchess.com"]
[Source "ChessBase"]
[SourceQuality "1"]
[TimeControl "40/5400+30:1800+30"]

1. d4 {[%emt 0:00:00]} d5 {[%emt 0:11:25]} 2. c4 {[%emt 0:00:00]} e6 {[%emt 0:00:15]} 3. Nf3 {[%emt 0:00:32]} c5 {[%emt 0:00:13]} 4. cxd5 {[%emt 0:01:50]} exd5 {[%emt 0:00:19]} 5. Nc3 {[%emt 0:00:33]} Nf6 {[%emt 0:00:44]} 6. Bg5 {[%emt 0:01:14]} Be7 {[%emt 0:09:48]} 7. e3 {[%emt 0:03:29]} Nc6 {[%emt 0:02:53]} 8. dxc5 {[%emt 0:03:57]} Be6 {[%emt 0:01:59]} 9. Rc1 {[%emt 0:03:52]} Bxc5 {[%emt 0:07:04]} 10. Nxd5 {[%emt 0:19:34]} Bxd5 {[%emt 0:14:53]} 11. Rxc5 {[%emt 0:00:55]} Bxa2 {[%emt 0:05:24]} 12. Qxd8+ {[%emt 0:02:31]} Rxd8 {[%emt 0:02:46]} 13. Bb5 {[%emt 0:03:20]} Bd5 {[%emt 0:03:38]} 14. Nd4 {[%emt 0:07:53]} Ne4 {[%emt 0:05:33]} 15. Nxc6 {[%emt 0:02:16]} bxc6 {[%emt 0:03:01]} 16. Rxd5 {[%emt 0:00:46]} Rxd5 {[%emt 0:01:47]} 17. Bxc6+ {[%emt 0:00:06]} Kf8 {[%emt 0:01:09]} 18. Bxd5 {[%emt 0:00:05]} Nxg5 {[%emt 0:00:05]} 19. Ke2 {[%emt 0:00:34]} Ke7 {[%emt 0:01:50]} 20. Ra1 {[%emt 0:03:29]} Rb8 {[%emt 0:01:36]} 21. Rxa7+ {[%emt 0:00:15]} Kd6 {[%emt 0:02:03]} 22. Rb7 {[%emt 0:00:18]} Rc8 {[%emt 0:00:51]} 23. e4 {[%emt 0:01:28]} Re8 {[%emt 0:04:01]} 24. Kd3 {[%emt 0:02:41]} f5 {[%emt 0:03:12]} 25. Rxg7 {[%emt 0:00:20]} fxe4+ {[%emt 0:02:05]} 26. Kd4 {[%emt 0:00:34]} h6 {[%emt 0:01:47]} 27. Rg6+ {[%emt 0:00:34] Kxd5+ Kxe4+} 1-0

[Event "5th EKA IIFL Investment 2019"]
[Site "Mumbai"]
[Date "2019.12.31"]
[Round "2.41"]
[White "Zia, Tahsin Tajwar"]
[Black "Konguvel, Ponnuswamy"]
[Result "0-1"]
[ECO "A48"]
[WhiteElo "2148"]
[BlackElo "2367"]
[Annotator "ChessBase"]
[PlyCount "78"]
[EventDate "2019.12.30"]
[EventType "swiss"]
[EventCountry "IND"]
[SourceTitle "playchess.com"]
[Source "ChessBase"]
[SourceQuality "1"]
[TimeControl "40/5400+30:1800+30"]

1. d4 {[%emt 0:00:00]} Nf6 {[%emt 0:00:00]} 2. Nf3 {[%emt 0:00:00]} g6 {[%emt 0:00:13]} 3. Bf4 {[%emt 0:00:00]} Bg7 {[%emt 0:00:32]} 4. e3 O-O {[%emt 0:03:13]} 5. h3 {[%emt 0:00:00]} b6 {[%emt 0:02:11]} 6. a4 {[%emt 0:00:04]} a6 {[%emt 0:00:34]} 7. Be2 {[%emt 0:00:11]} Bb7 {[%emt 0:00:06]} 8. O-O {[%emt 0:00:08]} d6 {[%emt 0:00:16]} 9. c4 {[%emt 0:00:17]} Nc6 {[%emt 0:05:41]} 10. Nc3 {[%emt 0:03:11]} Re8 {[%emt 0:00:49]} 11. d5 {[%emt 0:16:05]} Nb4 {[%emt 0:00:59]} 12. a5 {[%emt 0:00:44]} bxa5 {[%emt 0:14:23]} 13. Rxa5 {[%emt 0:08:37]} c6 {[%emt 0:01:53]} 14. Qa4 {[%emt 0:06:10]} Qb6 {[%emt 0:02:38]} 15. e4 {[%emt 0:06:53]} Nd7 {[%emt 0:14:26]} 16. Be3 {[%emt 0:04:13]} Nc5 {[%emt 0:00:04]} 17. Bxc5 {[%emt 0:00:49]} dxc5 {[%emt 0:00:03]} 18. Ra1 {[%emt 0:11:01]} cxd5 {[%emt 0:05:42]} 19. Nxd5 {[%emt 0:09:50]} Nxd5 {[%emt 0:26:55]} 20. cxd5 {[%emt 0:00:03]} Qxb2 {[%emt 0:00:07]} 21. Ra2 {[%emt 0:00:14]} Qb1+ {[%emt 0:09:36]} 22. Kh2 {[%emt 0:00:52]} Qb4 {[%emt 0:04:06]} 23. Qc2 {[%emt 0:02:35]} e6 {[%emt 0:00:34]} 24. Bxa6 {[%emt 0:18:52]} Bxa6 {[%emt 0:00:08]} 25. Rxa6 {[%emt 0:00:04]} Rxa6 {[%emt 0:00:03]} 26. Rxa6 {[%emt 0:00:07]} exd5 {[%emt 0:00:07]} 27. exd5 {[%emt 0:00:25]} Qf4+ {[%emt 0:01:30]} 28. Kh1 {[%emt 0:01:03]} Bf8 {[%emt 0:01:42]} 29. Qd2 {[%emt 0:04:21]} Qc4 {[%emt 0:01:38]} 30. Ra1 {[%emt 0:05:11]} Re2 {[%emt 0:00:13]} 31. Qg5 {[%emt 0:00:19]} Rxf2 {[%emt 0:01:34]} 32. Ra8 {[%emt 0:01:08]} h6 {[%emt 0:03:09]} 33. Qg3 {[%emt 0:00:56]} Qf1+ {[%emt 0:00:16]} 34. Ng1 {[%emt 0:01:05]} Kg7 {[%emt 0:00:13]} 35. Qe5+ {[%emt 0:00:32]} Kh7 {[%emt 0:00:01]} 36. Qe4 {[%emt 0:00:56]} Bd6 37. Rd8 {[%emt 0:00:29]} Be5 {[%emt 0:02:02]} 38. d6 {[%emt 0:00:52]} Bd4 {[%emt 0:00:01]} 39. d7 {[%emt 0:00:37]} Rd2 {[%emt 0:00:09]} 0-1

[Event "5th EKA IIFL Investment 2019"]
[Site "Mumbai"]
[Date "2019.12.31"]
[Round "2.42"]
[White "Muthaiah AL"]
[Black "Bommini Mounika Akshaya"]
[Result "1-0"]
[ECO "A20"]
[WhiteElo "2363"]
[BlackElo "2113"]
[Annotator "ChessBase"]
[PlyCount "105"]
[EventDate "2019.12.30"]
[EventType "swiss"]
[EventCountry "IND"]
[SourceTitle "playchess.com"]
[Source "ChessBase"]
[SourceQuality "1"]
[TimeControl "40/5400+30:1800+30"]

1. c4 {[%emt 0:00:00]} e5 {[%emt 0:00:00]} 2. g3 {[%emt 0:00:03]} c6 {[%emt 0:00:00]} 3. d4 {[%emt 0:00:17]} e4 {[%emt 0:00:00]} 4. d5 {[%emt 0:02:15]} cxd5 {[%emt 0:01:09]} 5. cxd5 {[%emt 0:00:15]} Nf6 {[%emt 0:06:09]} 6. Nc3 {[%emt 0:01:56]} Bb4 {[%emt 0:12:23]} 7. Bd2 {[%emt 0:02:38]} Qa5 {[%emt 0:13:40]} 8. Bg2 {[%emt 0:02:40]} O-O {[%emt 0:12:54]} 9. a3 {[%emt 0:14:33]} Bxc3 {[%emt 0:03:12]} 10. Bxc3 {[%emt 0:01:09]} Qxd5 {[%emt 0:01:42]} 11. Bxf6 {[%emt 0:01:34]} Qxd1+ {[%emt 0:00:18]} 12. Rxd1 {[%emt 0:00:10]} gxf6 {[%emt 0:00:01]} 13. Bxe4 {[%emt 0:00:17]} Nc6 {[%emt 0:05:24]} 14. Nf3 {[%emt 0:05:20]} Re8 {[%emt 0:00:13]} 15. Bf5 {[%emt 0:05:15]} Re7 {[%emt 0:08:48]} 16. e3 {[%emt 0:07:21]} b6 {[%emt 0:08:15]} 17. Rd6 {[%emt 0:01:23]} Bb7 {[%emt 0:03:19]} 18. O-O {[%emt 0:00:27]} Nd8 {[%emt 0:00:54]} 19. Nd4 {[%emt 0:09:37]} Ne6 {[%emt 0:00:54]} 20. Rc1 {[%emt 0:02:05]} Rae8 {[%emt 0:03:03]} 21. Bb1 {[%emt 0:08:24]} Nxd4 {[%emt 0:09:57]} 22. Rxd4 {[%emt 0:00:37]} h6 {[%emt 0:03:06]} 23. Rd6 {[%emt 0:04:31]} Kg7 {[%emt 0:02:46]} 24. Rc7 {[%emt 0:01:15]} Rc8 {[%emt 0:02:52]} 25. Rxb7 {[%emt 0:00:17]} Rc1+ {[%emt 0:00:04]} 26. Kg2 {[%emt 0:00:10]} Rxb1 {[%emt 0:00:03]} 27. Rd2 {[%emt 0:01:59]} Re5 {[%emt 0:01:26]} 28. Rxa7 {[%emt 0:00:30]} Rb5 {[%emt 0:00:26]} 29. b4 {[%emt 0:00:21]} d5 {[%emt 0:00:21]} 30. Rd7 Rb3 {[%emt 0:00:45]} 31. R7xd5 {[%emt 0:06:13]} Rxd5 {[%emt 0:00:08]} 32. Rxd5 {[%emt 0:00:05]} Rxa3 {[%emt 0:00:06]} 33. Rd6 {[%emt 0:00:06]} Ra6 {[%emt 0:00:44]} 34. g4 {[%emt 0:01:10]} Kg6 {[%emt 0:00:15]} 35. Kg3 {[%emt 0:00:35]} Kg7 {[%emt 0:00:17]} 36. b5 {[%emt 0:00:27]} Ra4 {[%emt 0:00:17]} 37. Rxb6 {[%emt 0:00:08]} Rb4 {[%emt 0:00:03]} 38. Rb8 {[%emt 0:00:25]} Kh7 {[%emt 0:00:13]} 39. b6 {[%emt 0:07:02]} Kg7 {[%emt 0:00:07]} 40. b7 {[%emt 0:00:00]} Kh7 {[%emt 0:00:00]} 41. h4 {[%emt 0:00:38]} Kg7 {[%emt 0:00:18]} 42. f4 {[%emt 0:00:29]} Rb3 {[%emt 0:02:44]} 43. Kf3 {[%emt 0:00:16]} Rb1 {[%emt 0:00:30]} 44. g5 {[%emt 0:00:37]} hxg5 {[%emt 0:00:26]} 45. fxg5 {[%emt 0:00:17]} fxg5 {[%emt 0:00:46]} 46. hxg5 {[%emt 0:00:02]} Rb5 {[%emt 0:03:30]} 47. e4 {[%emt 0:02:09]} Rb3+ {[%emt 0:00:06]} 48. Kf4 {[%emt 0:00:37]} Rb4 {[%emt 0:00:18]} 49. Ke3 {[%emt 0:00:30]} Rb3+ {[%emt 0:00:33]} 50. Kd4 {[%emt 0:00:09]} Rb4+ {[%emt 0:00:19]} 51. Kc3 {[%emt 0:00:19]} Rb1 {[%emt 0:00:34]} 52. e5 {[%emt 0:00:36]} Rb6 {[%emt 0:00:25]} 53. g6 {[%emt 0:00:41]} 1-0

[Event "5th EKA IIFL Investment 2019"]
[Site "Mumbai"]
[Date "2019.12.31"]
[Round "2.43"]
[White "Anuj Shrivatri"]
[Black "Tarini Goyal"]
[Result "0-1"]
[ECO "D35"]
[WhiteElo "2348"]
[BlackElo "2098"]
[Annotator "ChessBase"]
[PlyCount "60"]
[EventDate "2019.12.30"]
[EventType "swiss"]
[EventCountry "IND"]
[SourceTitle "playchess.com"]
[Source "ChessBase"]
[SourceQuality "1"]
[TimeControl "40/5400+30:1800+30"]

1. c4 {[%emt 0:00:00]} e6 {[%emt 0:00:00]} 2. Nc3 {[%emt 0:00:00]} d5 {[%emt 0:00:02]} 3. d4 {[%emt 0:00:00]} Nf6 {[%emt 0:00:35]} 4. cxd5 {[%emt 0:00:00]} exd5 {[%emt 0:00:06]} 5. Bg5 {[%emt 0:00:00]} c6 {[%emt 0:04:17]} 6. e3 {[%emt 0:00:17]} Be7 {[%emt 0:02:17]} 7. Bd3 {[%emt 0:00:09]} Nbd7 {[%emt 0:01:55]} 8. h3 {[%emt 0:00:07]} Nf8 {[%emt 0:04:06]} 9. Qc2 {[%emt 0:00:12]} g6 {[%emt 0:04:11]} 10. Nge2 {[%emt 0:01:56]} Ne6 {[%emt 0:00:18]} 11. Bh4 {[%emt 0:00:22]} Ng7 {[%emt 0:01:18]} 12. f3 {[%emt 0:01:18]} O-O {[%emt 0:04:11]} 13. O-O-O {[%emt 0:01:32]} b5 {[%emt 0:06:17]} 14. g4 {[%emt 0:06:34]} a5 {[%emt 0:03:30]} 15. Nf4 {[%emt 0:03:37]} a4 {[%emt 0:00:57]} 16. Nce2 {[%emt 0:22:30]} Ba6 {[%emt 0:11:06]} 17. Kb1 {[%emt 0:03:18]} Qd7 {[%emt 0:04:44]} 18. Bg5 {[%emt 0:10:44]} b4 {[%emt 0:00:54]} 19. Bxa6 {[%emt 0:08:59]} Rxa6 {[%emt 0:00:09]} 20. Nd3 {[%emt 0:03:36]} b3 {[%emt 0:03:25]} 21. axb3 {[%emt 0:03:51]} axb3 {[%emt 0:00:10]} 22. Qxb3 {[%emt 0:00:19]} Qa7 {[%emt 0:00:32]} 23. Bxf6 {[%emt 0:09:42]} Bxf6 {[%emt 0:03:05]} 24. Kc2 {[%emt 0:04:54]} Rb8 {[%emt 0:04:15]} 25. Qc3 {[%emt 0:00:14]} Ne6 {[%emt 0:02:35]} 26. Rb1 {[%emt 0:02:05]} c5 {[%emt 0:02:47]} 27. Nxc5 {[%emt 0:01:50]} Nxc5 {[%emt 0:04:26]} 28. Qxc5 {[%emt 0:00:30]} Qb7 {[%emt 0:00:11]} 29. Nc3 {[%emt 0:06:14]} Rc8 {[%emt 0:01:51]} 30. b4 {[%emt 0:00:12]} Be7 {[%emt 0:03:25]} 0-1

[Event "5th EKA IIFL Investment 2019"]
[Site "Mumbai"]
[Date "2019.12.31"]
[Round "2.44"]
[White "Sahoo, Utkal Ranjan"]
[Black "Sarbojit Paul"]
[Result "1-0"]
[ECO "D20"]
[WhiteElo "2329"]
[BlackElo "2084"]
[Annotator "ChessBase"]
[PlyCount "79"]
[EventDate "2019.12.30"]
[EventType "swiss"]
[EventCountry "IND"]
[SourceTitle "playchess.com"]
[Source "ChessBase"]
[SourceQuality "1"]
[TimeControl "40/5400+30:1800+30"]

1. d4 d5 2. c4 dxc4 3. e3 e5 4. Bxc4 exd4 5. Qb3 Qe7 6. Nf3 Qb4+ 7. Ke2 Qxb3 8. axb3 Nc6 9. exd4 Bg4 10. Be3 Be7 11. Nc3 a6 12. h3 Bxf3+ 13. Kxf3 Rd8 14. Rad1 Nf6 15. g4 O-O 16. h4 Rd7 17. g5 Nh5 18. Kg2 Bd6 19. Ne4 Rfd8 20. d5 Ne7 21. Kf3 Nf5 22. Nxd6 Rxd6 23. Bc5 R6d7 24. Kg4 g6 25. Rhe1 Nhg7 26. Re5 h5+ 27. Kh3 c6 28. Bb6 Rb8 29. b4 Nd6 30. Bb3 Nc8 31. Be3 Ne7 32. dxc6 Nxc6 33. Rxd7 Nxe5 34. Re7 Re8 35. Rxb7 Ne6 36. Bxe6 Rxe6 37. Rb8+ Kh7 38. Bd4 f6 39. gxf6 Nf7 40. Rf8 1-0

[Event "5th EKA IIFL Investment 2019"]
[Site "Mumbai"]
[Date "2019.12.31"]
[Round "2.45"]
[White "Laddha, Shubh Jayesh"]
[Black "Krishnater Kushager"]
[Result "0-1"]
[ECO "B31"]
[WhiteElo "1975"]
[BlackElo "2308"]
[Annotator "ChessBase"]
[PlyCount "100"]
[EventDate "2019.12.30"]
[EventType "swiss"]
[EventCountry "IND"]
[SourceTitle "playchess.com"]
[Source "ChessBase"]
[SourceQuality "1"]
[TimeControl "40/5400+30:1800+30"]

1. e4 {[%emt 0:00:00]} c5 {[%emt 0:00:00]} 2. Nf3 {[%emt 0:00:00]} Nc6 {[%emt 0:00:00]} 3. Bb5 {[%emt 0:00:00]} g6 {[%emt 0:00:00]} 4. Bxc6 {[%emt 0:00:00]} dxc6 {[%emt 0:00:00]} 5. d3 {[%emt 0:00:00]} Bg7 {[%emt 0:00:00]} 6. h3 {[%emt 0:00:04]} e5 {[%emt 0:03:44]} 7. a3 {[%emt 0:10:23]} Qe7 {[%emt 0:07:28]} 8. Nc3 {[%emt 0:01:26]} Nf6 {[%emt 0:02:45]} 9. Be3 {[%emt 0:01:04]} Nd7 {[%emt 0:01:14]} 10. Qd2 {[%emt 0:04:25]} h6 {[%emt 0:04:35]} 11. Nh2 {[%emt 0:14:13]} Nf8 {[%emt 0:12:43]} 12. O-O {[%emt 0:04:57]} Ne6 {[%emt 0:00:18]} 13. b4 {[%emt 0:09:12]} f5 {[%emt 0:01:57]} 14. exf5 {[%emt 0:03:44]} gxf5 {[%emt 0:00:24]} 15. Bxc5 {[%emt 0:02:54]} Nxc5 {[%emt 0:00:37]} 16. bxc5 {[%emt 0:00:07]} Qxc5 {[%emt 0:02:25]} 17. Ne2 {[%emt 0:02:06]} O-O {[%emt 0:02:08]} 18. Ng3 {[%emt 0:06:00]} Qd6 {[%emt 0:08:42]} 19. Rab1 {[%emt 0:07:42]} f4 {[%emt 0:03:08]} 20. Ne4 {[%emt 0:02:19]} Qxa3 {[%emt 0:01:47]} 21. Nf3 {[%emt 0:00:52]} Qe7 {[%emt 0:03:34]} 22. Rfe1 {[%emt 0:03:43]} Bf5 {[%emt 0:03:36]} 23. Qc3 {[%emt 0:05:30]} Kh8 {[%emt 0:02:52]} 24. Rb2 {[%emt 0:05:07]} Rac8 {[%emt 0:05:42]} 25. Ra1 {[%emt 0:00:58]} b6 {[%emt 0:02:34]} 26. Qa3 {[%emt 0:02:04]} Qxa3 {[%emt 0:01:26]} 27. Rxa3 {[%emt 0:00:06]} Rc7 {[%emt 0:05:15]} 28. Rba2 {[%emt 0:00:52]} Bxe4 {[%emt 0:00:06]} 29. dxe4 {[%emt 0:00:08]} Rff7 {[%emt 0:00:05]} 30. Nh4 {[%emt 0:00:46]} Rfd7 {[%emt 0:02:28]} 31. Nf5 {[%emt 0:00:21]} Bf8 {[%emt 0:00:16]} 32. Rb3 {[%emt 0:00:56]} Rd1+ {[%emt 0:03:31]} 33. Kh2 {[%emt 0:00:10]} Bc5 {[%emt 0:00:13]} 34. c3 {[%emt 0:02:32]} Kh7 {[%emt 0:00:39]} 35. g3 {[%emt 0:01:17]} Re1 {[%emt 0:01:29]} 36. f3 {[%emt 0:01:20]} Rd7 {[%emt 0:00:48]} 37. gxf4 {[%emt 0:01:12]} exf4 {[%emt 0:00:06]} 38. Nd4 {[%emt 0:00:26]} a5 {[%emt 0:08:13]} 39. Rg2 {[%emt 0:05:04]} a4 {[%emt 0:01:32]} 40. Rbb2 {[%emt 0:00:00]} b5 {[%emt 0:00:00]} 41. Ne6 {[%emt 0:02:19]} Rdd1 {[%emt 0:05:34]} 42. Nxf4 {[%emt 0:01:17]} Bd6 {[%emt 0:03:25]} 43. Kg3 {[%emt 0:00:45]} h5 {[%emt 0:00:40]} 44. Kh4 {[%emt 0:04:02]} Bxf4 {[%emt 0:01:13]} 45. Kxh5 {[%emt 0:00:08]} Rg1 {[%emt 0:00:35]} 46. Rg4 {[%emt 0:01:15]} Rxg4 {[%emt 0:00:06]} 47. Kxg4 {[%emt 0:00:11]} a3 {[%emt 0:00:27]} 48. Ra2 {[%emt 0:00:09]} Bc1 {[%emt 0:01:29]} 49. e5 {[%emt 0:00:09]} Bb2 {[%emt 0:00:04]} 50. Kf5 {[%emt 0:00:11]} Kg7 {[%emt 0:00:11]} 0-1

[Event "5th EKA IIFL Investment 2019"]
[Site "Mumbai"]
[Date "2019.12.31"]
[Round "2.46"]
[White "Ghelani Dhairya"]
[Black "Manish Anto Cristiano F"]
[Result "1/2-1/2"]
[ECO "E46"]
[WhiteElo "2027"]
[BlackElo "2280"]
[Annotator "ChessBase"]
[PlyCount "104"]
[EventDate "2019.12.30"]
[EventType "swiss"]
[EventCountry "IND"]
[SourceTitle "playchess.com"]
[Source "ChessBase"]
[SourceQuality "1"]
[TimeControl "40/5400+30:1800+30"]

1. d4 {[%emt 0:00:00]} Nf6 {[%emt 0:00:00]} 2. c4 {[%emt 0:00:00]} e6 {[%emt 0:00:04]} 3. Nc3 {[%emt 0:00:14]} Bb4 {[%emt 0:00:29]} 4. e3 {[%emt 0:00:17]} O-O {[%emt 0:00:42]} 5. Bd2 {[%emt 0:00:07]} d5 {[%emt 0:01:02]} 6. Nf3 {[%emt 0:00:59]} b6 {[%emt 0:01:58]} 7. cxd5 {[%emt 0:00:06]} exd5 {[%emt 0:00:17]} 8. Bd3 {[%emt 0:00:07]} Bb7 {[%emt 0:00:49]} 9. O-O {[%emt 0:00:18]} Nbd7 {[%emt 0:00:47]} 10. Ne5 {[%emt 0:01:46]} Bd6 {[%emt 0:11:44]} 11. f4 {[%emt 0:01:57]} Ne4 {[%emt 0:01:41]} 12. Nxe4 {[%emt 0:04:47]} dxe4 {[%emt 0:00:54]} 13. Bc4 {[%emt 0:00:31]} Qe7 {[%emt 0:02:08]} 14. Rc1 {[%emt 0:13:10]} c5 {[%emt 0:03:55]} 15. Nxd7 {[%emt 0:07:09]} Qxd7 {[%emt 0:00:18]} 16. Bc3 {[%emt 0:00:34]} Rad8 {[%emt 0:06:10]} 17. Qe2 {[%emt 0:05:23]} Qe7 {[%emt 0:05:16]} 18. dxc5 {[%emt 0:12:38]} Bxc5 {[%emt 0:01:41]} 19. f5 {[%emt 0:00:15]} Qg5 {[%emt 0:08:35]} 20. Rce1 {[%emt 0:03:34]} Bd5 {[%emt 0:08:47]} 21. Bxd5 {[%emt 0:01:55]} Rxd5 {[%emt 0:01:20]} 22. b4 {[%emt 0:01:06]} Rd3 {[%emt 0:08:40]} 23. bxc5 {[%emt 0:00:35]} Rxc3 {[%emt 0:00:11]} 24. cxb6 {[%emt 0:00:35]} axb6 {[%emt 0:00:14]} 25. Rf4 {[%emt 0:00:33]} Rfc8 {[%emt 0:09:53]} 26. Rxe4 {[%emt 0:07:41]} Qxf5 {[%emt 0:00:58]} 27. Rd4 {[%emt 0:00:18]} h6 {[%emt 0:04:47]} 28. Rd2 {[%emt 0:04:09]} Qe5 {[%emt 0:03:41]} 29. Qf2 {[%emt 0:01:22]} Qe6 {[%emt 0:03:50]} 30. h3 {[%emt 0:03:37]} Ra3 {[%emt 0:03:44]} 31. Rb2 {[%emt 0:02:27]} Rca8 {[%emt 0:01:18]} 32. Ree2 {[%emt 0:01:31]} R8a4 {[%emt 0:00:43]} 33. e4 {[%emt 0:04:34]} Rxe4 {[%emt 0:02:43]} 34. Rxe4 {[%emt 0:01:01]} Qxe4 {[%emt 0:00:02]} 35. Qxb6 {[%emt 0:00:52]} Qe1+ {[%emt 0:02:56]} 36. Kh2 {[%emt 0:00:03]} Qe5+ {[%emt 0:00:19]} 37. Kg1 {[%emt 0:00:54]} Qe1+ {[%emt 0:00:32]} 38. Kh2 {[%emt 0:00:08]} Qe5+ {[%emt 0:00:50]} 39. Kg1 {[%emt 0:00:49]} Re3 {[%emt 0:00:08]} 40. Qb8+ {[%emt 0:00:00]} Qxb8 {[%emt 0:00:00]} 41. Rxb8+ {[%emt 0:00:27]} Kh7 {[%emt 0:01:39]} 42. Ra8 {[%emt 0:00:10]} Re2 {[%emt 0:00:18]} 43. a4 {[%emt 0:00:05]} Ra2 {[%emt 0:00:42]} 44. a5 {[%emt 0:00:05]} Kg6 {[%emt 0:00:36]} 45. a6 {[%emt 0:00:18]} Kg5 {[%emt 0:00:26]} 46. a7 {[%emt 0:01:08]} f6 {[%emt 0:01:11]} 47. g3 {[%emt 0:02:21]} h5 {[%emt 0:03:18]} 48. Kf1 {[%emt 0:01:56]} Kg6 {[%emt 0:03:09]} 49. Kg1 {[%emt 0:01:31]} Kg5 {[%emt 0:01:12]} 50. Kf1 Kf5 {[%emt 0:04:04]} 51. Kg1 {[%emt 0:01:22]} h4 {[%emt 0:03:53]} 52. Rh8 {[%emt 0:00:49]} Ke5 1/2-1/2

[Event "5th EKA IIFL Investment 2019"]
[Site "Mumbai"]
[Date "2019.12.31"]
[Round "2.47"]
[White "Debashis, Das"]
[Black "Ramakrishna, J.."]
[Result "1-0"]
[ECO "A61"]
[WhiteElo "2523"]
[BlackElo "2068"]
[Annotator "RC"]
[PlyCount "95"]
[EventDate "2019.12.30"]
[EventType "swiss"]
[EventCountry "IND"]
[SourceTitle "playchess.com"]
[Source "ChessBase"]
[SourceQuality "1"]
[TimeControl "40/5400+30:1800+30"]

1. d4 Nf6 2. c4 e6 3. Nc3 c5 4. d5 exd5 5. cxd5 d6 6. Nf3 g6 7. Nd2 a6 8. a4 Bg7 9. e4 O-O 10. Be2 Re8 11. O-O Nbd7 12. Qc2 Nh5 13. Bxh5 gxh5 14. b3 Ne5 15. Bb2 Qh4 16. Rae1 b5 17. Nd1 Qf4 18. Bc1 Bd7 19. Kh1 bxa4 20. bxa4 Rab8 21. Nc4 Qf6 22. Bb2 Rb4 23. Bxe5 dxe5 24. Ndb2 Reb8 25. Re3 h4 26. h3 Qg6 27. Ra3 R4b7 28. Re1 f6 29. Nd3 Bf8 30. Rc3 Rb4 31. Nxb4 cxb4 32. Rd3 b3 33. Qb2 Bxa4 34. d6 Qf7 35. Ne3 a5 36. Ra1 Bc6 37. Rxa5 Bxe4 38. Rd1 Qd7 39. Kg1 Bh6 40. Ng4 Bg7 41. Rc5 Rb7 42. Rc3 Bc2 43. Rxc2 bxc2 44. Qxc2 f5 45. Qa2+ Kf8 46. Qa8+ Kf7 47. Qxb7 Qxb7 48. d7 1-0

[Event "5th EKA IIFL Investment 2019"]
[Site "Mumbai"]
[Date "2019.12.31"]
[Round "2.48"]
[White "Chilukuri Sai Varshith"]
[Black "Nigmatov, Ortik"]
[Result "0-1"]
[ECO "E94"]
[WhiteElo "2118"]
[BlackElo "2474"]
[Annotator "RC"]
[PlyCount "84"]
[EventDate "2019.12.30"]
[EventType "swiss"]
[EventCountry "IND"]
[SourceTitle "playchess.com"]
[Source "ChessBase"]
[SourceQuality "1"]
[TimeControl "40/5400+30:1800+30"]

1. d4 Nf6 2. c4 g6 3. Nc3 Bg7 4. e4 d6 5. Nf3 O-O 6. Be2 e5 7. O-O Nbd7 8. d5 a5 9. Qc2 Nc5 10. Bg5 h6 11. Be3 b6 12. Nd2 Ne8 13. a3 f5 14. f3 Na6 15. Rab1 f4 16. Bf2 g5 17. b4 h5 18. bxa5 Nc5 19. axb6 cxb6 20. Rb4 g4 21. Rfb1 g3 22. hxg3 fxg3 23. Be3 Qh4 24. Nf1 Ra7 25. Rxb6 Raf7 26. Qd2 Bf6 27. a4 Rg7 28. Bxc5 dxc5 29. d6 Bg5 30. Qd5+ Kh7 31. Qxc5 Nf6 32. Nd5 Nd7 33. Qa3 Nxb6 34. Nxb6 Bb7 35. Qd3 Bc6 36. a5 Ra7 37. Ra1 Rb8 38. c5 Bb5 39. Qb3 Bxe2 40. c6 Bxf1 41. c7 Bc4 42. Qxc4 Qh2+ 0-1

[Event "5th EKA IIFL Investment 2019"]
[Site "Mumbai"]
[Date "2020.01.01"]
[Round "3.19"]
[White "Pranesh, M."]
[Black "Shyaamnikhil P"]
[Result "1-0"]
[ECO "B94"]
[WhiteElo "2317"]
[BlackElo "2455"]
[Annotator "RC"]
[PlyCount "67"]
[EventDate "2019.12.30"]
[EventType "swiss"]
[EventCountry "IND"]
[SourceTitle "playchess.com"]
[Source "ChessBase"]
[SourceQuality "1"]
[TimeControl "40/5400+30:1800+30"]

1. e4 {[%emt 0:00:00]} c5 {[%emt 0:00:00]} 2. Nf3 {[%emt 0:00:00]} d6 {[%emt 0:00:38]} 3. d4 {[%emt 0:00:00]} cxd4 {[%emt 0:00:07]} 4. Nxd4 {[%emt 0:00:00]} Nf6 {[%emt 0:00:06]} 5. Nc3 {[%emt 0:00:00]} a6 {[%emt 0:00:11]} 6. Bg5 {[%emt 0:00:00]} Nbd7 {[%emt 0:04:26]} 7. Bc4 {[%emt 0:00:07]} h6 {[%emt 0:06:09]} 8. Bxf6 {[%emt 0:00:54]} Nxf6 {[%emt 0:00:19]} 9. Qe2 {[%emt 0:01:41]} e5 {[%emt 0:08:40]} 10. Nf3 {[%emt 0:02:07]} Be6 {[%emt 0:01:48]} 11. Bxe6 {[%emt 0:03:16]} fxe6 {[%emt 0:00:15]} 12. Nh4 {[%emt 0:00:43]} g5 {[%emt 0:08:00]} 13. Ng6 {[%emt 0:01:11]} Rg8 {[%emt 0:00:15]} 14. Nxf8 {[%emt 0:00:26]} Rxf8 {[%emt 0:00:08]} 15. h4 {[%emt 0:02:44]} g4 {[%emt 0:01:37]} 16. O-O-O {[%emt 0:00:47]} h5 {[%emt 0:02:04]} 17. Qd2 {[%emt 0:01:23]} Ke7 {[%emt 0:10:24]} 18. f4 {[%emt 0:02:49]} gxf3 {[%emt 0:03:24]} 19. gxf3 {[%emt 0:00:44]} Rc8 {[%emt 0:00:10]} 20. Rhg1 {[%emt 0:03:36]} Rf7 {[%emt 0:01:23]} 21. f4 {[%emt 0:01:46]} exf4 {[%emt 0:10:23]} 22. Qxf4 {[%emt 0:01:10]} Rc5 {[%emt 0:00:07]} 23. Rgf1 {[%emt 0:12:18]} b5 {[%emt 0:15:43]} 24. Kb1 {[%emt 0:08:05]} Re5 {[%emt 0:06:19]} 25. a3 {[%emt 0:03:28]} Qb6 {[%emt 0:08:31]} 26. Rd3 {[%emt 0:03:28]} a5 {[%emt 0:00:57]} 27. Rdf3 {[%emt 0:02:30]} b4 {[%emt 0:00:23]} 28. axb4 {[%emt 0:01:24]} axb4 {[%emt 0:00:08]} 29. Ne2 {[%emt 0:00:47]} Ra5 {[%emt 0:05:28]} 30. Nc1 {[%emt 0:00:45]} Ra8 {[%emt 0:00:11]} 31. Qg5 {[%emt 0:01:38]} Qa5 {[%emt 0:02:27]} 32. Nb3 {[%emt 0:00:45]} Qa2+ {[%emt 0:01:32]} 33. Kc1 {[%emt 0:00:08]} Raf8 {[%emt 0:00:00]} 34. Qe5 {[%emt 0:02:59]} 1-0